fUST/lending_fUST_20241013
["ID","MTS","AMOUNT","RATE_DAILY","PERIOD"]
[340184198,1728789047009,-158.587039,0.000338,14]
[340184199,1728789047119,-151.0,0.000338,14]
[340184200,1728789047129,-360.187948,0.000338,2]
[340184201,1728789047138,-360.187948,0.000338,2]
[340184202,1728789047148,-167.375612,0.000338,14]
[340184203,1728789047157,-768.144405,0.000338,14]
[340184204,1728789047167,-167.375612,0.000338,14]
[340184205,1728789047177,-768.144405,0.000338,14]
[340184206,1728789047187,-151.0,0.000338,14]
[340184207,1728789047197,-176.450222,0.000338,14]
[340184208,1728789047206,-176.450222,0.000338,14]
[340184209,1728789047215,-3010.2,0.00034,7]
[340184210,1728789047225,-150.112233,0.00034,9]
[340184211,1728789047234,-243.495032,0.00034,14]
[340184212,1728789047243,-34.14944053,0.00034,14]
[340184214,1728789591907,845.5917001,0.00023676,2]
[340184215,1728789606981,604.7042998,0.00023651,2]
[340184216,1728789626942,1557.8510185,0.00023488,2]
[340184217,1728789662739,10080.300703,0.00023516,2]
[340184219,1728789766004,1302.7198803,0.00023504,2]
[340184220,1728789766346,2276.833616,0.00023524,2]
[340184221,1728789785020,3000.0,0.00023524,2]
[340184222,1728789813998,8423.997773,0.00023726,2]
[340184223,1728789816734,396.9784862,0.00023467,2]
[340184224,1728789881387,250.0,0.00023629,2]
[340184225,1728789881591,250.0,0.00023694,2]
[340184226,1728789881797,250.0,0.00023759,2]
[340184227,1728789882010,250.0,0.00023824,2]
[340184228,1728789882222,250.0,0.00023889,2]
[340184229,1728789882435,250.0,0.00023953,2]
[340184230,1728789891260,5199.650154,0.00023456,2]
[340184231,1728789902632,781.8136229,0.00023464,2]
[340184232,1728789911593,167.45215,0.0002291,2]
[340184234,1728789936152,-250.0,0.00024018,2]
[340184235,1728789936176,-219.24157675,0.00024083,2]
[340184236,1728790037198,800.834855,0.00023144,2]
[340184237,1728790048085,-223.1257725,0.00024048,2]
[340184238,1728790048105,-223.12577248,0.00024067,2]
[340184239,1728790048129,-30.75842325,0.00024083,2]
[340184240,1728790048153,-223.12577248,0.00024086,2]
[340184241,1728790048179,-515.70980118,0.000241,2]
[340184242,1728790053211,-1260.79268472,0.000241,2]
[340184243,1728790053242,-468.80158775,0.000241,2]
[340184244,1728790053605,250.0,0.00023183,2]
[340184246,1728790093573,166.666666,0.00022802,2]
[340184247,1728790094032,166.666666,0.00023423,2]
[340184248,1728790110551,3124.16791269,0.000134,2]
[340184249,1728790118119,7575.73096165,0.00022,30]
[340184250,1728790120735,18526.00145784,0.00020377,2]
[340184251,1728790125556,249.23878818,0.00022,2]
[340184252,1728790145141,-166.666666,0.00024045,2]
[340184253,1728790145165,-250.0,0.00024148,2]
[340184254,1728790145191,-150.0,0.00024149,2]
[340184255,1728790145211,-309.24883236,0.00024173,2]
[340184256,1728790145233,-300.0,0.00024198,2]
[340184257,1728790145254,-300.0,0.00024198,2]
[340184258,1728790145275,-596.14642584,0.00024199,2]
[340184259,1728790145299,-500.0,0.00024199,2]
[340184260,1728790145319,-500.0,0.00024199,2]
[340184261,1728790145340,-500.0,0.00024199,2]
[340184262,1728790145362,-500.0,0.00024199,2]
[340184263,1728790145384,-250.2044089,0.00024199,2]
[340184264,1728790145404,-377.72371256,0.00024199,2]
[340184265,1728790145428,-500.0,0.00024199,2]
[340184266,1728790145452,-500.0,0.00024199,2]
[340184267,1728790145557,-209.74185828,0.00024199,2]
[340184268,1728790145582,-500.0,0.00024199,2]
[340184269,1728790145604,-500.0,0.00024199,2]
[340184270,1728790145626,-500.0,0.00024199,2]
[340184271,1728790145648,-500.0,0.00024199,2]
[340184272,1728790145674,-500.0,0.00024199,2]
[340184273,1728790145697,-500.0,0.00024199,2]
[340184274,1728790145719,-500.0,0.00024199,2]
[340184275,1728790145743,-500.0,0.00024199,2]
[340184276,1728790145764,-500.0,0.00024199,2]
[340184277,1728790145790,-500.0,0.00024199,2]
[340184278,1728790145811,-500.0,0.00024199,2]
[340184279,1728790145833,-500.0,0.00024199,2]
[340184280,1728790145855,-500.0,0.00024199,2]
[340184281,1728790145876,-500.0,0.00024199,2]
[340184282,1728790145899,-500.0,0.00024199,2]
[340184283,1728790145922,-500.0,0.00024199,2]
[340184284,1728790145945,-500.0,0.00024199,2]
[340184285,1728790145968,-500.0,0.00024199,2]
[340184286,1728790145992,-500.0,0.00024199,2]
[340184287,1728790146014,-500.0,0.00024199,2]
[340184288,1728790146035,-500.0,0.00024199,2]
[340184289,1728790146057,-500.0,0.00024199,2]
[340184290,1728790146078,-500.0,0.00024199,2]
[340184291,1728790146099,-500.0,0.00024199,2]
[340184292,1728790146121,-500.0,0.00024199,2]
[340184293,1728790146142,-348.31608131,0.000242,2]
[340184294,1728790146163,-12356.36015332,0.000242,2]
[340184295,1728790150145,-25096.87764079,0.000242,2]
[340184296,1728790150167,-10080.300703,0.00024201,2]
[340184297,1728790150191,-1.87203981,0.00024213,2]
[340184298,1728790150221,-248.12796019,0.00024213,2]
[340184299,1728790150243,-250.0,0.00024277,2]
[340184300,1728790150264,-163.769692,0.0002429,2]
[340184301,1728790150288,-163.769692,0.000243,2]
[340184302,1728790150309,-163.769692,0.0002431,2]
[340184303,1728790150333,-163.769692,0.0002432,2]
[340184304,1728790150356,-163.769692,0.0002433,2]
[340184305,1728790150378,-163.769692,0.0002434,2]
[340184306,1728790150418,-250.0,0.00024342,2]
[340184307,1728790150442,-163.769692,0.0002435,2]
[340184308,1728790150466,-163.769692,0.00024361,2]
[340184309,1728790150489,-163.769692,0.00024371,2]
[340184310,1728790150511,-163.769692,0.00024381,2]
[340184311,1728790150640,-163.769692,0.00024391,2]
[340184312,1728790150663,-163.769692,0.00024401,2]
[340184313,1728790150686,-250.0,0.00024407,2]
[340184314,1728790150707,-163.769692,0.00024411,2]
[340184315,1728790150729,-250.0,0.00024472,2]
[340184316,1728790150753,-250.0,0.00024537,2]
[340184317,1728790150778,-250.0,0.00024601,2]
[340184318,1728790150798,-200.0,0.00024658,15]
[340184319,1728790150820,-500.0,0.00024658,2]
[340184320,1728790150842,-500.0,0.00024658,2]
[340184321,1728790150863,-500.0,0.00024658,2]
[340184322,1728790150884,-500.0,0.00024658,2]
[340184323,1728790150906,-500.0,0.00024658,2]
[340184324,1728790150929,-500.0,0.00024658,2]
[340184325,1728790150952,-500.0,0.00024658,2]
[340184326,1728790150974,-500.0,0.00024658,2]
[340184327,1728790150996,-500.0,0.00024658,2]
[340184328,1728790151017,-500.0,0.00024658,2]
[340184329,1728790151039,-500.0,0.00024658,2]
[340184330,1728790151061,-500.0,0.00024658,2]
[340184331,1728790151082,-500.0,0.00024658,2]
[340184332,1728790151103,-500.0,0.00024658,2]
[340184333,1728790151126,-500.0,0.00024658,2]
[340184334,1728790151147,-500.0,0.00024658,2]
[340184335,1728790151168,-500.0,0.00024658,2]
[340184336,1728790151190,-500.0,0.00024658,2]
[340184337,1728790151211,-500.0,0.00024658,2]
[340184338,1728790151232,-500.0,0.00024658,2]
[340184339,1728790151254,-500.0,0.00024658,2]
[340184340,1728790151275,-500.0,0.00024658,2]
[340184341,1728790151307,-500.0,0.00024658,2]
[340184342,1728790151341,-500.0,0.00024658,2]
[340184343,1728790151376,-500.0,0.00024658,2]
[340184344,1728790151410,-500.0,0.00024658,2]
[340184345,1728790151445,-500.0,0.00024658,2]
[340184346,1728790151478,-254.42542237,0.00024658,2]
[340184347,1728790151512,-250.0,0.00024666,2]
[340184348,1728790151540,-166.666666,0.00024667,2]
[340184349,1728790151575,-250.0,0.00024731,2]
[340184350,1728790151610,-250.0,0.00024796,2]
[340184351,1728790151641,-421.5,0.00024826,3]
[340184352,1728790151671,-210.75,0.00024826,3]
[340184353,1728790151707,-632.3,0.00024826,3]
[340184354,1728790151738,-1044.07,0.00024826,10]
[340184355,1728790151767,-481.8032937,0.00024835,2]
[340184356,1728790151798,-280.57703116,0.00024835,2]
[340184357,1728790151827,-274.91331653,0.00024835,2]
[340184358,1728790151854,-170.90382435,0.00024835,2]
[340184359,1728790151884,-51850.68583902,0.00024836,3]
[340184360,1728790151923,24900.0,0.00023497,2]
[340184361,1728790152115,2000.0,0.00024,2]
[340184362,1728790152177,-3087.79508338,0.00024836,3]
[340184363,1728790152208,-76949.8062908,0.00024836,3]
[340184364,1728790152237,-437.16401167,0.00024846,2]
[340184365,1728790152268,-250.0,0.00024861,2]
[340184366,1728790152298,-10080.300703,0.00024886,2]
[340184367,1728790152323,-109876.961845,0.00024947,3]
[340184368,1728790152454,-153899.612582,0.00024947,3]
[340184369,1728790152474,-11488.195204,0.00024969,2]
[340184370,1728790152494,-500.0,0.00024973,2]
[340184371,1728790152514,-500.0,0.00024973,2]
[340184372,1728790152534,-571.48741579,0.00024973,2]
[340184373,1728790152553,-500.0,0.00024973,2]
[340184374,1728790152573,-500.30102556,0.00024973,2]
[340184375,1728790152593,-502.77133491,0.00024973,2]
[340184376,1728790152613,-501.42109849,0.00024973,2]
[340184377,1728790152632,-151.12303259,0.00024973,2]
[340184378,1728790152654,-500.0,0.00024973,2]
[340184379,1728790152674,-500.0,0.00024973,2]
[340184380,1728790152695,-500.0,0.00024973,2]
[340184381,1728790152716,-55536.17524569,0.00025,2]
[340184382,1728790153123,-3382.52643684,0.00025,2]
[340184383,1728790156129,-870.05,0.00024826,10]
[340184384,1728790156153,-98971.1826991,0.00025,2]
[340184392,1728790158157,-316.88126201,0.00025,2]
[340184393,1728790162120,-3190.51390831,0.00025,2]
[340184394,1728790162145,-25078.40931052,0.00025,2]
[340184395,1728790162168,-6730.0,0.00025,14]
[340184396,1728790162191,-1306.59773979,0.0002509,2]
[340184397,1728790162213,-166.666666,0.00025288,2]
[340184398,1728790162234,-162.601754,0.00025503,2]
[340184399,1728790162256,-503.47512839,0.00025643,2]
[340184400,1728790162277,-500.0,0.00025643,2]
[340184401,1728790162300,-166.666666,0.0002591,2]
[340184402,1728790162321,-210.75,0.00025936,3]
[340184403,1728790162344,-23029.22623682,0.00025946,4]
[340184404,1728790163082,500.0,0.00024173,2]
[340184405,1728790171164,-725.05,0.00025935,10]
[340184406,1728790171191,-1232.33367134,0.00025946,4]
[340184407,1728790173178,500.0,0.00024973,2]
[340184408,1728790173240,500.0,0.00024973,2]
[340184414,1728790187916,911.22276808,0.000221,2]
[340184416,1728790196560,500.0,0.00024973,2]
[340184417,1728790202719,5000.0,0.00024,2]
[340184418,1728790205472,150.0,0.00025,120]
[340184451,1728790232583,-300.0,0.00025845,2]
[340184452,1728790235365,346.060122,0.00024944,2]
[340184484,1728790239000,-346.060122,0.00025629,2]
[340184485,1728790239011,-9077.43686841,0.00025845,2]
[340184486,1728790239021,-604.2,0.00025935,10]
[340184487,1728790239031,-632.25,0.00025936,3]
[340184488,1728790239040,-337.26230559,0.00025945,2]
[340184489,1728790239049,-196.40392181,0.00025945,2]
[340184490,1728790239061,-192.43932158,0.00025945,2]
[340184491,1728790239071,-500.0,0.00025945,2]
[340184492,1728790239080,-500.0,0.00025945,2]
[340184493,1728790239089,-500.0,0.00025945,2]
[340184494,1728790239100,-500.0,0.00025945,2]
[340184495,1728790239110,-500.0,0.00025945,2]
[340184496,1728790239119,-470.97418583,0.00025945,2]
[340184497,1728790239129,-500.0,0.00025945,2]
[340184498,1728790239138,-500.0,0.00025945,2]
[340184499,1728790239147,-500.0,0.00025945,2]
[340184500,1728790239157,-500.0,0.00025945,2]
[340184501,1728790239166,-500.0,0.00025945,2]
[340184502,1728790239175,-500.0,0.00025945,2]
[340184503,1728790239185,-500.0,0.00025945,2]
[340184504,1728790239194,-500.0,0.00025945,2]
[340184505,1728790239203,-500.0,0.00025945,2]
[340184506,1728790239213,-500.0,0.00025945,2]
[340184507,1728790239222,-500.0,0.00025945,2]
[340184508,1728790239233,-500.0,0.00025945,2]
[340184509,1728790239242,-500.0,0.00025945,2]
[340184510,1728790239252,-500.0,0.00025945,2]
[340184511,1728790239261,-500.0,0.00025945,2]
[340184512,1728790239270,-500.0,0.00025945,2]
[340184513,1728790239279,-500.0,0.00025945,2]
[340184514,1728790239288,-500.0,0.00025945,2]
[340184515,1728790239297,-500.0,0.00025945,2]
[340184516,1728790239307,-318.68346693,0.00025945,2]
[340184517,1728790239317,-300.0,0.00025945,2]
[340184518,1728790239438,-300.0,0.00025945,2]
[340184519,1728790239450,-151.0,0.00025945,7]
[340184520,1728790239461,-526.22052898,0.00025945,2]
[340184521,1728790239471,-15065.85482341,0.00025946,4]
[340184529,1728790240624,-70549.54711343,0.00025946,4]
[340184530,1728790240635,-153899.612582,0.00025946,4]
[340184531,1728790240645,-437.16401165,0.00025999,2]
[340184532,1728790240656,-159.075056,0.00026,8]
[340184533,1728790240666,-618.51539413,0.00026206,2]
[340184534,1728790240678,-500.0,0.00026206,2]
[340184535,1728790240689,-346.060122,0.00026313,2]
[340184536,1728790240699,-502.7369016,0.00026342,2]
[340184537,1728790240709,-1000.0,0.00026342,2]
[340184538,1728790240718,-150.112233,0.000271,9]
[340184539,1728790240728,-437.16401165,0.00027152,2]
[340184540,1728790240738,-421.5,0.00027306,3]
[340184541,1728790240747,-151.0,0.00027489,2]
[340184542,1728790240757,-54938.4809224,0.0002749,4]
[340184543,1728790240767,-76949.8062908,0.0002749,4]
[340184544,1728790240777,-168.1659351,0.00027573,5]
[340184545,1728790240787,-500.0,0.00027575,5]
[340184546,1728790240797,-6730.0,0.000276,30]
[340184547,1728790240808,-151.0,0.000276,7]
[340184548,1728790240818,-1448.28,0.000277,14]
[340184549,1728790240827,-1497.2,0.000277,30]
[340184550,1728790240838,-420.0,0.00028079,2]
[340184551,1728790240848,-150.112233,0.000282,6]
[340184552,1728790240857,-437.16401165,0.00028304,2]
[340184553,1728790240867,-1500.0,0.00028346,5]
[340184554,1728790240877,-420.0,0.00028539,2]
[340184555,1728790240887,-502.31463224,0.00028671,5]
[340184556,1728790240896,-500.0,0.00028671,5]
[340184557,1728790240907,-500.0,0.00028671,5]
[340184558,1728790240917,-211.82153089,0.000287,2]
[340184559,1728790240927,-211.82153088,0.000287,2]
[340184560,1728790240937,-335.46923547,0.00029088,5]
[340184561,1728790240948,-150.112233,0.000293,8]
[340184562,1728790240958,-437.16401165,0.00029457,2]
[340184563,1728790240968,-172.96979114,0.000295,120]
[340184564,1728790240977,-500.0,0.00029573,5]
[340184565,1728790240987,-9377.43686839,0.00029839,2]
[340184566,1728790240996,-718.8354186,0.00029876,10]
[340184567,1728790241006,-500.0,0.00029876,10]
[340184568,1728790241016,-500.0,0.00029876,10]
[340184569,1728790241025,-500.0,0.00029876,10]
[340184570,1728790241035,-500.0,0.00029876,10]
[340184571,1728790241044,-500.0,0.00029876,10]
[340184572,1728790241054,-500.0,0.00029876,10]
[340184573,1728790241065,-500.0,0.00029876,10]
[340184574,1728790241075,-500.0,0.00029876,10]
[340184575,1728790241084,-500.0,0.00029876,10]
[340184576,1728790241094,-500.0,0.00029876,10]
[340184577,1728790241103,-500.0,0.00029876,10]
[340184578,1728790241113,-500.0,0.00029876,10]
[340184579,1728790241122,-500.0,0.00029876,10]
[340184580,1728790241132,-500.0,0.00029876,10]
[340184581,1728790241141,-639.40290394,0.00029876,10]
[340184582,1728790241151,-500.0,0.00029946,10]
[340184583,1728790241161,-500.0,0.00029946,10]
[340184584,1728790241171,-531.37986095,0.00029946,10]
[340184585,1728790241181,-167.563721,0.00029947,7]
[340184586,1728790241191,-151.0,0.00029947,7]
[340184587,1728790241201,-151.0,0.00029947,7]
[340184588,1728790241211,-151.0,0.00029947,7]
[340184589,1728790241220,-151.0,0.00029947,7]
[340184590,1728790241230,-151.0,0.00029947,7]
[340184591,1728790241240,-151.0,0.00029947,7]
[340184592,1728790241249,-151.0,0.00029947,7]
[340184593,1728790241259,-151.0,0.00029947,7]
[340184594,1728790241268,-151.0,0.00029947,7]
[340184595,1728790241278,-205.615997,0.00029947,7]
[340184596,1728790241288,-205.615997,0.00029947,7]
[340184597,1728790241299,-151.0,0.00029947,7]
[340184598,1728790241310,-272.042859,0.00029947,7]
[340184599,1728790241321,-272.042859,0.00029947,7]
[340184600,1728790241332,-358.524904,0.00029947,7]
[340184601,1728790241343,-358.524904,0.00029947,7]
[340184602,1728790241353,-614.515524,0.00029947,7]
[340184603,1728790241363,-151.0,0.00029947,7]
[340184604,1728790241373,-614.515524,0.00029947,7]
[340184605,1728790241383,-2485.328354,0.00029947,7]
[340184606,1728790241395,-2485.328354,0.00029947,7]
[340184607,1728790241406,-151.0,0.00029947,7]
[340184608,1728790241417,-151.0,0.00029947,7]
[340184609,1728790241427,-159.715521,0.00029947,7]
[340184610,1728790241436,-151.0,0.00029947,7]
[340184611,1728790241446,-289.450273,0.00029947,7]
[340184612,1728790241456,-151.0,0.00029947,7]
[340184613,1728790241466,-151.0,0.00029947,7]
[340184614,1728790241477,-229.385289,0.00029947,7]
[340184615,1728790241487,-229.385289,0.00029947,7]
[340184616,1728790241498,-156.924118,0.00029947,7]
[340184617,1728790241508,-156.924118,0.00029947,7]
[340184618,1728790241518,-151.0,0.00029947,7]
[340184619,1728790241527,-151.0,0.00029947,7]
[340184620,1728790241539,-151.0,0.00029947,7]
[340184621,1728790241620,-151.0,0.00029947,7]
[340184622,1728790241629,-151.0,0.00029947,7]
[340184623,1728790241639,-151.0,0.00029947,7]
[340184624,1728790241649,-509.381723,0.00029947,7]
[340184625,1728790241659,-509.381723,0.00029947,7]
[340184626,1728790241669,-1695.002454,0.00029947,7]
[340184627,1728790241680,-1695.002454,0.00029947,7]
[340184628,1728790241690,-875.72904696,0.0003,15]
[340184629,1728790241699,-4748.82198345,0.0003,10]
[340184630,1728790241709,-166.49162359,0.0003,2]
[340184631,1728790241719,-215.98134358,0.0003,2]
[340184632,1728790241728,-186.0,0.0003,2]
[340184633,1728790241738,-500.0,0.0003,30]
[340184634,1728790241747,-500.0,0.0003,30]
[340184635,1728790241757,-500.0,0.0003,30]
[340184636,1728790241767,-509.06308094,0.0003,30]
[340184637,1728790241777,-505.05035527,0.0003,30]
[340184638,1728790241786,-500.0,0.0003,30]
[340184639,1728790241795,-500.0,0.0003,30]
[340184640,1728790241804,-506.12859951,0.0003,30]
[340184641,1728790241815,-500.0,0.0003,30]
[340184642,1728790241826,-500.0,0.0003,30]
[340184643,1728790241835,-500.0,0.0003,30]
[340184644,1728790241845,-500.0,0.0003,30]
[340184645,1728790241854,-500.0,0.0003,30]
[340184646,1728790241866,-500.0,0.0003,30]
[340184647,1728790241876,-500.0,0.0003,30]
[340184648,1728790241885,-500.0,0.0003,30]
[340184649,1728790241896,-500.0,0.0003,30]
[340184650,1728790241907,-854.73081106,0.0003,30]
[340184651,1728790241918,-500.0,0.0003,30]
[340184652,1728790241929,-500.0,0.0003,30]
[340184653,1728790241940,-500.0,0.0003,30]
[340184654,1728790241950,-500.0,0.0003,30]
[340184655,1728790241960,-500.0,0.0003,30]
[340184656,1728790241971,-500.0,0.0003,30]
[340184657,1728790241980,-500.0,0.0003,30]
[340184658,1728790241990,-644.07957919,0.00030041,5]
[340184659,1728790241999,-689.80732628,0.00030041,5]
[340184660,1728790242008,-587.0,0.0003039,2]
[340184661,1728790242017,-150.112233,0.000304,8]
[340184662,1728790242027,-1448.28,0.000306,14]
[340184663,1728790242037,-1497.2,0.000306,30]
[340184664,1728790242048,-186.9983685,0.0003065,2]
[340184665,1728790242058,-2000.0,0.00030687,5]
[340184666,1728790242068,-6730.0,0.000307,30]
[340184667,1728790242077,-1000.0,0.00030942,5]
[340184668,1728790242087,-587.0,0.00031393,2]
[340184669,1728790242097,-150.112233,0.000315,7]
[340184670,1728790242106,-2910.0,0.0003175,2]
[340184671,1728790242115,-158.0,0.0003187,2]
[340184672,1728790242125,-150.112233,0.000326,5]
[340184673,1728790242134,-439.25839703,0.00032877,2]
[340184674,1728790242143,-823.0,0.00032891,2]
[340184675,1728790242153,-582.40786797,0.00032946,5]
[340184676,1728790242162,-547.41677968,0.00032973,5]
[340184677,1728790242171,-500.0,0.00032973,5]
[340184678,1728790242181,-500.0,0.00032973,5]
[340184679,1728790242191,-500.27822298,0.00032973,5]
[340184680,1728790242202,-500.0,0.00032973,5]
[340184681,1728790242214,-500.0,0.00032973,5]
[340184682,1728790242224,-151.0,0.00032999,2]
[340184683,1728790242236,-151.0,0.00032999,2]
[340184684,1728790242246,-242653.68839114,0.00033,2]
[340184685,1728790242255,-278.43614038,0.00033,30]
[340184686,1728790242265,-151.0,0.00033,7]
[340184687,1728790242274,-2500.0,0.00033278,5]
[340184688,1728790242284,-210.359,0.00033612,36]
[340184689,1728790242293,-1448.28,0.000337,30]
[340184690,1728790242303,-1497.2,0.000337,30]
[340184691,1728790242313,-150.112233,0.000337,5]
[340184692,1728790242322,-9377.43686839,0.00033832,2]
[340184693,1728790242332,-151.0,0.00033979,14]
[340184694,1728790242342,-151.0,0.00033979,14]
[340184695,1728790242351,-154.903498,0.00033979,14]
[340184696,1728790242361,-151.0,0.00033979,14]
[340184697,1728790242370,-151.0,0.00033979,3]
[340184698,1728790242380,-161.79243,0.00033979,14]
[340184699,1728790242389,-151.0,0.00033979,14]
[340184700,1728790242399,-151.0,0.00033979,14]
[340184701,1728790242408,-151.0,0.00033979,14]
[340184702,1728790242419,-151.0,0.00033979,14]
[340184703,1728790242428,-151.0,0.00033979,14]
[340184704,1728790242437,-150.0,0.00034,2]
[340184705,1728790242447,-3144.14405718,0.00034,120]
[340184706,1728790242457,-531.01807288,0.00034,5]
[340184707,1728790242467,-156.924118,0.00034047,14]
[340184708,1728790242477,-156.924118,0.00034047,14]
[340184709,1728790242487,-153.746843,0.00034047,14]
[340184710,1728790242496,-151.0,0.00034047,14]
[340184711,1728790242505,-151.0,0.00034047,14]
[340184712,1728790242515,-151.0,0.00034047,14]
[340184713,1728790242524,-151.0,0.00034047,14]
[340184714,1728790242533,-151.0,0.00034047,14]
[340184715,1728790242542,-509.381723,0.00034047,14]
[340184716,1728790242552,-509.381723,0.00034047,14]
[340184717,1728790242562,-1695.002454,0.00034047,14]
[340184718,1728790242571,-1695.002454,0.00034047,14]
[340184719,1728790242581,-1000.0,0.0003431,7]
[340184720,1728790242590,-1000.0,0.00034342,5]
[340184721,1728790242600,-1000.0,0.00034342,5]
[340184722,1728790242609,-1000.0,0.00034342,5]
[340184723,1728790242619,-1000.0,0.00034342,5]
[340184724,1728790242628,-337.51623956,0.00034373,5]
[340184725,1728790242638,-2600.0,0.000345,30]
[340184726,1728790242647,-6730.0,0.000345,30]
[340184727,1728790242657,-823.0,0.00034532,2]
[340184728,1728790242667,-603.86469185,0.0003467,2]
[340184729,1728790242677,-151.0,0.0003467,14]
[340184730,1728790242686,-151.0,0.0003467,14]
[340184731,1728790242696,-151.0,0.0003467,14]
[340184732,1728790242707,-151.0,0.0003467,14]
[340184733,1728790242716,-151.0,0.0003467,14]
[340184734,1728790242728,-151.0,0.0003467,14]
[340184735,1728790242739,-151.0,0.0003467,14]
[340184736,1728790242749,-151.0,0.0003467,14]
[340184737,1728790242760,-272.042859,0.0003467,14]
[340184738,1728790242769,-272.042859,0.0003467,14]
[340184739,1728790242780,-358.524904,0.0003467,14]
[340184740,1728790242790,-358.524904,0.0003467,14]
[340184741,1728790242800,-151.0,0.000347,14]
[340184742,1728790242810,-2485.328354,0.000347,14]
[340184743,1728790242819,-2485.328354,0.000347,14]
[340184744,1728790242829,-151.0,0.000347,14]
[340184745,1728790242838,-151.0,0.000347,14]
[340184746,1728790242848,-151.0,0.000347,14]
[340184747,1728790242858,-151.0,0.000347,14]
[340184748,1728790242868,-151.0,0.000347,14]
[340184749,1728790242878,-229.385289,0.000347,14]
[340184750,1728790242888,-229.385289,0.000347,14]
[340184751,1728790242897,-2053.35555841,0.00034758,2]
[340184752,1728790242907,-150.112233,0.000348,5]
[340184753,1728790242916,-1111.0,0.00034849,120]
[340184754,1728790242925,-151.0,0.00034916,14]
[340184755,1728790242935,-205.615997,0.00034916,14]
[340184756,1728790242945,-205.615997,0.00034916,14]
[340184757,1728790242955,-163.168561,0.00034916,14]
[340184758,1728790242964,-614.515524,0.00034916,14]
[340184759,1728790242974,-614.515524,0.00034916,14]
[340184760,1728790242984,-174.173072,0.00034925,14]
[340184761,1728790242993,-151.0,0.00034925,14]
[340184762,1728790243003,-151.0,0.00034925,14]
[340184763,1728790243012,-287.827478,0.00034925,14]
[340184764,1728790243022,-279.291305,0.00034925,14]
[340184765,1728790243032,-158.587039,0.00034925,14]
[340184766,1728790243041,-158.587039,0.00034925,14]
[340184767,1728790243050,-151.0,0.00034925,14]
[340184768,1728790243059,-151.0,0.00034925,14]
[340184769,1728790243130,-151.0,0.00034925,3]
[340184771,1728790243140,-151.0,0.00034925,14]
[340184772,1728790243149,-151.0,0.00034925,14]
[340184773,1728790243158,-151.0,0.00034925,14]
[340184774,1728790243168,-151.0,0.00034925,14]
[340184775,1728790243177,-151.0,0.00034925,14]
[340184776,1728790243187,-150.0,0.00035,2]
[340184777,1728790243196,-302.42545213,0.00035,2]
[340184778,1728790243205,-446.84766922,0.00035,2]
[340184779,1728790243214,-1858.03971602,0.00035,7]
[340184781,1728790243224,-10451.41107019,0.00035,2]
[340184782,1728790243233,-302.45563732,0.00035,2]
[340184783,1728790243242,-160.0,0.00035,2]
[340184784,1728790243251,-2276.833616,0.00035286,2]
[340184785,1728790243260,-1448.28,0.000353,30]
[340184786,1728790243269,-1497.2,0.000353,30]